BeneficiaryName,Invoice Date,Net Amount,Department,Purpose,Category Internal Name,Beneficiary Other ID,,
Aberdeen Asset Investments Ltd,23-Nov-16,5807.84,Financial services,Fund manager fee,Financial Services,6298,,6969.41
Active Facility Solutions Ltd,11-Nov-16,5380,Housing and Environmental Health,Improvement grants,Building Services,110,,5380
Active Facility Solutions Ltd,23-Nov-16,5510,Housing and Environmental Health,Improvement grants,Building Services,112,,5510
Artistes International Management Ltd,16-Nov-16,3168.4,Venues and Facilities,Prof performances share of takings,Playhouse Entertainers,1837,,3802.08
ARVAL PHH Business Solutions,21-Nov-16,5602.96,Operational Services,Petrol diesel & oil,Transport,E2007473799,,6723.55
ARVAL PHH Business Solutions,07-Nov-16,5848.71,Operational Services,Petrol diesel & oil,Transport,E2007402101,,7018.37
Bentley Mobility Services Ltd,23-Nov-16,3990,Housing and Environmental Health,Improvement grants,Building Services,23297,,3990
Capita Business Services Ltd,18-Nov-16,7909.5,Financial services,DWP Regulation changes expenses,Financial Services,6003435928,,9491.4
Capital Response Ltd,24-Oct-16,7803,Procurement & Projects,Electrical testing remedial work,Building Services,75201,,9363.6
Data Images Software Solutions Ltd,27-Oct-16,26000,ICT,SW purchases,Consultancy,1835,,31200
Data Images Software Solutions Ltd,27-Oct-16,5000,Operational Services,Computer hardware purchase,Consultancy,1836,,6000
Data Images Software Solutions Ltd,02-Nov-16,5189.1,Operational Services,Computer hardware purchase,Consultancy,1839,,6226.92
Derek Block Promotions Ltd,18-Nov-16,5542.31,Venues and Facilities,Prof performances share of takings,Playhouse Entertainers,342,,6650.77
Derek Block Promotions Ltd,04-Nov-16,6314.67,Venues and Facilities,Prof performances share of takings,Playhouse Entertainers,336,,7577.6
DG Servicing Ltd,04-Nov-16,6037.12,Housing and Environmental Health,Improvement grants,Building Services,1001,,6037.12
Elmbridge Borough Council,18-Nov-16,28996.05,ICT,Agency staff,Other Local Authorities,1009000754,,28996.05
Entertainers Show Providers,10-Nov-16,4563.33,Venues and Facilities,Prof performances share of takings,Playhouse Entertainers,4733,,5476
Euro Hotels (Thornton Heath) Ltd,09-Oct-16,4340,Housing & Environmental Services,Homeless /Temporary Accommodation,Travel  & Accomodation,GT16296,,5208
Euro Hotels (Thornton Heath) Ltd,16-Oct-16,4340,Housing & Environmental Services,Homeless /Temporary Accommodation,Travel  & Accomodation,GT16299,,5208
Euro Hotels (Thornton Heath) Ltd,23-Oct-16,4340,Housing & Environmental Services,Homeless /Temporary Accommodation,Travel  & Accomodation,GT16303,,5208
Euro Hotels (Thornton Heath) Ltd,30-Oct-16,4340,Housing & Environmental Services,Homeless /Temporary Accommodation,Travel  & Accomodation,GT16329,,5208
Euro Hotels (Thornton Heath) Ltd,02-Oct-16,5290,Housing & Environmental Services,Homeless /Temporary Accommodation,Travel  & Accomodation,GT16294,,6348
Faun Zoeller(UK) Ltd,01-Nov-16,8750,Operational Services,Avoidable repairs,Building Materials,106173,,10500
Freeway Lift Services Ltd,17-Nov-16,16495,Housing and Environmental Health,Improvement grants,Building Services,1148,,16495
Frontline,02-Nov-16,2976.54,HR,Publicity,Books & Publications,MM/5519B,,3571.85
Frontline,02-Nov-16,4307.25,HR,Publicity,Books & Publications,MM/5519a,,5168.7
Glendale Grounds Management Ltd,31-Oct-16,3942.61,Housing and Environmental Health,Maintenance of grounds,Estates & Grounds maintenance,GM088-105EC,,4731.13
Happy Homes (One) Ltd,06-Nov-16,20925,Housing & Environmental Services,Homeless /Temporary Accommodation,Travel  & Accomodation,HH1-0117,,20925
Happy Homes( Europe) Limited,21-Nov-16,4325,Housing & Environmental Services,Homeless /Temporary Accommodation,Travel  & Accomodation,HH0211,,4325
Happy Homes( Europe) Limited,14-Nov-16,5425,Housing & Environmental Services,Homeless /Temporary Accommodation,Travel  & Accomodation,HH0210,,5425
Happy Homes( Europe) Limited,07-Nov-16,6055,Housing & Environmental Services,Homeless /Temporary Accommodation,Travel  & Accomodation,HH0209,,6055
Happy Homes( Europe) Limited,31-Oct-16,6965,Housing & Environmental Services,Homeless /Temporary Accommodation,Travel  & Accomodation,HH0208,,6965
Happy Homes( Europe) Limited,24-Oct-16,7175,Housing & Environmental Services,Homeless /Temporary Accommodation,Travel  & Accomodation,HH0207,,7175
Joe Brown Productions Ltd,14-Nov-16,2856.63,Venues and Facilities,Prof performances share of takings,Playhouse Entertainers,2567,,3427.96
Joe Brown Productions Ltd,01-Sep-16,3500,Venues and Facilities,Prof performances share of takings,Playhouse Entertainers,2536,,4200
Kent County Council ( DD`s ONLY),02-Nov-16,4145.18,Venues and Facilities,Electricity,Central Government,E4625092,,4974.22
Kier Facilities Services Ltd,01-Nov-16,4218.13,Venues and Facilities,Kier cleaning contract recharges,Building Services,16040047,,5061.76
Kier Facilities Services Ltd,01-Nov-16,4497.42,Venues and Facilities,Works to Council owned land drainage,Building Services,16040047,,5396.9
Kier Facilities Services Ltd,01-Nov-16,16924.44,Venues and Facilities,Contract engineering services,Building Services,16040047,,20309.33
Kier Facilities Services Ltd,01-Nov-16,30183.01,Venues and Facilities,Contract cleaning costs,Building Services,16040047,,36219.61
Kier Facilities Services Ltd,01-Nov-16,4465.22,Operational Services,Kier Council owned land drainage recharge,Building Services,16040047,,5358.24
Kier Facilities Services Ltd,01-Nov-16,4746.96,Venues and Facilities,Kier cleaning contract recharges,Building Services,16040047,,5696.35
Kier Facilities Services Ltd,01-Nov-16,2889.54,Venues and Facilities,Kier cleaning contract recharges,Building Services,16040047,,3467.45
Kier Facilities Services Ltd,01-Nov-16,2860.29,Operational Services,Kier engineering and fabric recharge,Building Services,16040047,,3432.35
Kier Facilities Services Ltd,01-Nov-16,6832.6,Venues and Facilities,Kier cleaning contract recharges,Building Services,16040047,,8199.12
Listen to the Music Ltd,22-Nov-16,3905.86,Venues and Facilities,Prof performances share of takings,Playhouse Entertainers,33,,4687.03
M Bray,08-Nov-16,10000,Procurement & Projects,Building maintenance,Building Materials,MB/TH/245,,10000
Mark Lundquist Management,28-Nov-16,2533.64,Venues and Facilities,Prof performances share of takings,Playhouse Entertainers,740,,3040.37
Matrix SCM Ltd,02-Nov-16,3238.2,Venues and Facilities,Agency staff,Agency staff,17536,,3885.84
Matrix SCM Ltd,26-Oct-16,3908.6,ICT,Agency staff,Agency staff,17466,,4690.32
Matrix SCM Ltd,09-Nov-16,7718.79,Operational Services,Agency staff,Agency staff,17610,,9262.55
Matrix SCM Ltd,09-Nov-16,10818.66,Operational Services,Agency staff,Agency staff,17610,,12982.39
Matrix SCM Ltd,09-Nov-16,4018.6,Operational Services,Agency staff,Agency staff,17610,,4822.32
Mr J Pasteau,08-Nov-16,8697,Housing and Environmental Health,Improvement grants,Building Services,3133,,8697
Mr J Pasteau,11-Nov-16,11213,Housing and Environmental Health,Improvement grants,Building Services,16/00036/TEN,,11213
Nett (UK) Entertainment,28-Nov-16,6231.29,Venues and Facilities,Prof performances share of takings,Playhouse Entertainers,16-728,,7477.55
Norwell Lapley Productions Ltd,08-Nov-16,5404.84,Venues and Facilities,Prof performances share of takings,Playhouse Entertainers,NLP16/088,,6485.8
Off The Kerb Productions,15-Nov-16,4346,Venues and Facilities,Prof performances share of takings,Playhouse Entertainers,53140,,5215.2
Parties To Go,31-Oct-16,2583.29,Chief Executive,Civic expenses,Food & Catering Supplies,80933,,3099.95
Penna PLC,03-Nov-16,6996,Financial services,Agency staff,Agency staff,534853,,8395.2
Phil McIntyre Entertainment,22-Nov-16,3070.87,Venues and Facilities,Prof performances share of takings,Financial Services,2836,,3685.04
Positive Lighting Installations Ltd,20-Nov-16,7829,Chief Executive,Christmas decorations,Building Services,478,,9394.8
Richard Iles,21-Oct-16,5110,Housing and Environmental Health,Improvement grants,Building Services,402,,5110
Sandy Dog Ltd,05-Oct-16,3076,Venues and Facilities,Prof performances share of takings,Playhouse Entertainers,BYC409,,3691.2
Santa Enterprises Ltd,23-Nov-16,10500,Venues and Facilities,Prof performances share of takings,Playhouse Entertainers,SANTA16-0002,,12600
Savills Commercial Ltd,15-Sep-16,7062.5,Venues and Facilities,Building rent,Legal Services,201600000851/bvgb000,,8475
Scheidt & Bachmann UK Ltd,31-Oct-16,22396.4,Customer Services & Business Support,OP. equipment & tools : purchase,Building Services,2082371,,26875.68
Shaw & Sons Ltd,18-Oct-16,2914.86,Chief Executive,Civic expenses,Office Stationery,254475,,3497.83
Softcat Ltd,28-Oct-16,5999.76,ICT,Software and hardware maintenance,IT Equipment,1485952,,7199.71
Southern Elec DDs only,22-Nov-16,2946.8,Operational Services,Electricity,Utilities,531128863/0066,,3536.16
Southern Elec DDs only,22-Nov-16,5008.51,Operational Services,Electricity,Utilities,671129540/0098,,6010.21
Specialist Fleet Services Ltd ,04-Nov-16,2615,Operational Services,Contract Hire Payments,Transport,105514,,3138
Specialist Fleet Services Ltd ,01-Nov-16,2829.61,Operational Services,Contract Hire Payments,Transport,101875,,3395.53
Specialist Fleet Services Ltd ,16-Nov-16,2907.69,Operational Services,Contract Hire Payments,Transport,103578,,3489.22
Specialist Fleet Services Ltd ,16-Nov-16,2907.69,Operational Services,Contract Hire Payments,Transport,103579,,3489.22
Specialist Fleet Services Ltd ,16-Nov-16,2907.69,Operational Services,Contract Hire Payments,Transport,103580,,3489.22
Specialist Fleet Services Ltd ,16-Nov-16,2907.69,Operational Services,Contract Hire Payments,Transport,103581,,3489.22
Specialist Fleet Services Ltd ,23-Nov-16,2907.69,Operational Services,Contract Hire Payments,Transport,103582,,3489.22
Specialist Fleet Services Ltd ,23-Nov-16,2907.69,Operational Services,Contract Hire Payments,Transport,103583,,3489.22
Specialist Fleet Services Ltd ,17-Nov-16,2911.27,Operational Services,Contract Hire Payments,Transport,103577,,3493.52
Specialist Fleet Services Ltd ,01-Nov-16,4706.67,Operational Services,Contract Hire Payments,Transport,105608,,5648
Stagecoach South Western Trains Ltd,10-Nov-16,20000,Place Development,West Ewell cycle hub,Travel,91044617,,24000
Steve Simons Plumbing&Building Services,24-Oct-16,7095,Housing and Environmental Health,Improvement grants,Building Services,2590,,7095
Steve Simons Plumbing&Building Services,08-Nov-16,9330,Housing & Environmental Services,Improvement grants,Building Services,2592,,9330
Virgin Media,08-Nov-16,4364.5,ICT,Data connections,Telecom Services,905047-101,,5237.4
Voluntary Action Mid Surrey (VAMS),10-Nov-16,3994.5,Chief Executive,Grants,Grants,VAMS1745,,3994.5
W C Evans,10-Oct-16,10000,Procurement & Projects,Payments to contractors,Building Services,E56162,,12000
W C Evans,18-Oct-16,14947,Procurement & Projects,Payments to contractors,Building Services,E56268,,17936.4
W C Evans,22-Oct-16,61039.71,Procurement & Projects,Payments to contractors,Building Services,E56277,,73247.65
W C Evans,05-Oct-16,62207.3,Procurement & Projects,Payments to contractors,Building Services,E56127,,74648.76
